bitfinex/quotes_BTCUSD_20250423
["timestamp","ask_amount","ask_price","bid_price","bid_amount"]
[1745367304365,0.04826876,93401.0,93390.0,0.2798689]
[1745367304668,0.04826876,93401.0,93390.0,0.00747843]
[1745367304911,0.04926876,93401.0,93391.0,0.00747843]
[1745367305251,0.04826876,93401.0,93391.0,0.00747843]
[1745367305657,0.04826876,93401.0,93387.0,0.00747843]
[1745367305658,0.01070755,93392.0,93387.0,0.00747843]
[1745367305863,0.10830305,93391.0,93387.0,0.00747843]
[1745367306487,0.10830305,93391.0,93381.0,0.00747843]
[1745367307390,0.11030305,93391.0,93381.0,0.00747843]
[1745367308236,0.002,93391.0,93381.0,0.00747843]
[1745367308576,0.002,93391.0,93383.0,0.01070858]
[1745367308810,0.09446876,93401.0,93384.0,0.02032835]
[1745367309010,0.001,93391.0,93385.0,0.01070835]
[1745367309210,0.001,93391.0,93384.0,0.02032835]
[1745367309416,0.001,93391.0,93384.0,0.00961988]
[1745367309614,0.001,93391.0,93385.0,0.00747843]
[1745367309770,0.001,93391.0,93385.0,0.13812017]
[1745367310414,0.001,93391.0,93385.0,0.13064174]
[1745367310580,0.20277181,93401.0,93385.0,0.13064174]
[1745367311638,0.20277181,93401.0,93385.0,0.14135009]
[1745367311855,0.20277181,93401.0,93385.0,0.12850029]
[1745367312203,0.00046876,93401.0,93399.0,0.12848062]
[1745367312429,0.048,93426.0,93415.0,0.01070491]
[1745367312667,0.01070411,93422.0,93415.0,0.27239047]
[1745367312922,0.048,93416.0,93410.0,0.27239047]
[1745367313132,0.10830305,93415.0,93410.0,0.27239047]
[1745367313359,0.048,93416.0,93410.0,0.27239047]
[1745367313570,0.048,93424.0,93410.0,0.27239047]
[1745367313788,0.10830305,93423.0,93410.0,0.27239047]
[1745367314726,0.01070446,93419.0,93410.0,0.27239047]
[1745367314933,0.0107056,93409.0,93401.0,0.24108834]
[1745367315141,0.01070526,93412.0,93401.0,0.24108834]
[1745367315142,0.21412817,93402.0,93401.0,0.24108834]
[1745367315359,0.21413276,93400.0,93380.0,0.27239047]
[1745367315984,0.32243581,93400.0,93380.0,0.27239047]
[1745367316119,0.10830305,93400.0,93390.0,0.27239047]
[1745367316327,0.1036,93400.0,93390.0,0.54478094]
[1745367316911,0.1026,93400.0,93390.0,0.54478094]
[1745367317105,0.1026,93400.0,93390.0,0.27239047]
[1745367317742,0.1066,93400.0,93399.0,0.002]
[1745367318347,0.004,93400.0,93399.0,0.002]
[1745367318970,0.1076,93400.0,93399.0,0.002]
[1745367320024,0.004,93400.0,93399.0,0.002]
[1745367320948,0.26613276,93400.0,93399.0,0.002]
[1745367321165,0.052,93400.0,93399.0,0.002]
[1745367323796,0.004,93400.0,93399.0,0.002]
[1745367325205,0.004,93400.0,93399.0,0.13048103]
[1745367325466,0.004,93400.0,93399.0,0.13262214]
[1745367326084,0.004,93400.0,93399.0,0.002]
[1745367326533,0.004,93400.0,93399.0,0.13048103]
[1745367327443,0.15138,93422.0,93405.0,0.01070606]
[1745367327686,0.15138,93422.0,93410.0,0.40788385]
[1745367327687,0.25968305,93422.0,93410.0,0.40788385]
[1745367327920,0.0479,93422.0,93410.0,0.40788385]
[1745367328145,0.0479,93422.0,93404.0,0.01070617]
[1745367328146,0.0479,93422.0,93403.0,0.01070629]
[1745367328356,0.0479,93422.0,93410.0,0.40788385]
[1745367330098,0.0489,93422.0,93410.0,0.40788385]
[1745367330466,0.0489,93422.0,93287.0,1.0200494]
[1745367330467,0.049,93408.0,93399.0,0.001]
[1745367330875,0.049,93408.0,93392.0,0.25179589]
[1745367331096,0.049,93408.0,93392.0,0.24108834]
[1745367331347,0.10830305,93421.0,93395.0,0.12848599]
[1745367331569,0.049,93415.0,93407.0,0.40788385]
[1745367333023,0.049,93415.0,93407.0,0.19692125]
[1745367333228,0.049,93415.0,93407.0,0.12132125]
[1745367334057,0.052,93415.0,93407.0,0.12132125]
[1745367335192,0.003,93415.0,93407.0,0.12132125]
[1745367336345,0.003,93415.0,93413.0,0.12846103]
[1745367336535,0.003,93415.0,93414.0,0.103886]
[1745367336771,0.003,93415.0,93413.0,0.14300134]
[1745367336978,0.003,93415.0,93413.0,0.01454085]
[1745367337187,0.00056534,93425.0,93414.0,0.004279]
[1745367337396,0.001,93415.0,93414.0,0.004279]
[1745367338023,0.00056534,93425.0,93414.0,0.004279]
[1745367338822,0.00056534,93425.0,93418.0,0.12845431]
[1745367339023,0.00056534,93425.0,93416.0,0.12845718]
[1745367339359,0.00056534,93425.0,93416.0,0.13916198]
[1745367339561,0.00056534,93425.0,93416.0,0.12845718]
[1745367340146,0.00156534,93425.0,93416.0,0.12845718]
[1745367340474,0.00156534,93425.0,93414.0,0.004279]
[1745367340475,0.00156534,93425.0,93414.0,0.01498403]
[1745367340675,0.00156534,93425.0,93415.0,0.01070491]
[1745367340928,0.00056534,93425.0,93422.0,0.01070411]
[1745367341105,0.00056534,93425.0,93422.0,0.01284471]
[1745367341453,0.00056534,93425.0,93418.0,0.13915947]
[1745367341659,0.00056534,93425.0,93420.0,0.12845182]
[1745367341994,0.00056534,93425.0,93422.0,0.13915263]
[1745367342140,0.00056534,93425.0,93421.0,0.01284483]
[1745367342495,0.00156534,93425.0,93424.0,0.12844665]
[1745367342730,0.00156534,93425.0,93424.0,0.13058713]
[1745367342988,0.00056534,93425.0,93424.0,0.13058713]
[1745367343203,0.00256534,93425.0,93424.0,0.13058713]
[1745367343417,0.00256534,93425.0,93424.0,0.16648166]
[1745367344220,0.00056534,93425.0,93424.0,0.16648166]
[1745367345115,0.00056534,93425.0,93424.0,0.28932556]
[1745367345337,0.00056534,93425.0,93424.0,0.16434118]
[1745367345556,0.00056534,93425.0,93424.0,0.18102241]
[1745367345815,0.00356534,93425.0,93424.0,0.18102241]
[1745367346034,0.001,93429.0,93424.0,0.29823368]
[1745367346255,0.0947246,93453.0,93438.0,0.01070228]
[1745367346466,0.0947246,93453.0,93439.0,0.27384404]
[1745367346717,0.0947246,93453.0,93439.0,0.2717039]
[1745367346933,0.0947246,93453.0,93440.0,0.00214014]
[1745367347371,0.0947246,93453.0,93439.0,0.2717039]
[1745367347802,0.0947246,93453.0,93440.0,0.01070205]
[1745367348025,0.0947246,93453.0,93441.0,0.00747749]
[1745367348241,0.0947246,93453.0,93441.0,0.01817943]
[1745367348473,0.0004246,93453.0,93448.0,0.12841366]
[1745367348717,0.0004246,93453.0,93448.0,0.13055357]
[1745367348928,0.0004246,93453.0,93448.0,0.15257179]
[1745367349144,0.003,93449.0,93448.0,0.50982381]
[1745367349418,0.003,93449.0,93448.0,0.41322866]
[1745367349648,0.001,93449.0,93448.0,0.41322866]
[1745367349876,0.001,93449.0,93448.0,2.23388466]
[1745367350108,0.004,93449.0,93448.0,2.23840612]
[1745367350345,0.001,93449.0,93448.0,0.64452412]
[1745367350588,0.001,93449.0,93448.0,0.55644412]
[1745367351063,0.001,93449.0,93448.0,0.70660412]
[1745367351280,0.001,93449.0,93448.0,0.72114497]
[1745367351945,0.0004248,93481.0,93480.0,0.1283697]
[1745367352170,0.00056534,93481.0,93480.0,0.1283697]
[1745367352390,0.00056534,93481.0,93480.0,0.13050881]
[1745367352610,0.00056534,93481.0,93480.0,0.1283697]
[1745367352841,0.0004246,93487.0,93486.0,0.14290231]
[1745367353083,0.0004246,93487.0,93486.0,0.55072536]
[1745367353314,0.0004246,93487.0,93486.0,0.59751636]
[1745367353522,0.0014247,93509.0,93499.0,0.2717039]
[1745367354170,0.0014247,93509.0,93506.0,0.0106945]
[1745367354386,0.0014247,93509.0,93507.0,0.13047]
[1745367354816,0.0014247,93509.0,93507.0,0.1283314]
[1745367355035,0.0014247,93509.0,93506.0,0.0106945]
[1745367355238,0.0014247,93509.0,93501.0,0.17651195]
[1745367355663,0.0467,93508.0,93501.0,0.17651195]
[1745367356296,0.0467,93508.0,93507.0,0.001]
[1745367356713,0.0467,93508.0,93498.0,0.2717039]
[1745367356824,0.0527,93508.0,93498.0,0.2717039]
[1745367357377,0.006,93508.0,93498.0,0.28239931]
[1745367357549,0.006,93508.0,93505.0,0.13902862]
[1745367357752,0.006,93508.0,93506.0,0.00213858]
[1745367357975,0.006,93508.0,93505.0,0.01069461]
[1745367358292,0.0014247,93509.0,93499.0,0.11899835]
[1745367358497,0.009,93508.0,93507.0,0.001]
[1745367358912,0.009,93508.0,93504.0,0.01069472]
[1745367359122,0.0014247,93509.0,93504.0,0.01069472]
[1745367359301,0.008,93508.0,93505.0,0.001]
[1745367359760,0.0014247,93509.0,93504.0,0.01069472]
[1745367360094,0.008,93508.0,93504.0,0.01069472]
[1745367360500,0.008,93508.0,93505.0,0.14116801]
[1745367360746,0.008,93508.0,93506.0,0.02139904]
[1745367360905,0.008,93508.0,93507.0,0.00213851]
[1745367361108,0.008,93508.0,93505.0,0.13902942]
[1745367361310,0.0014247,93509.0,93506.0,0.0106945]
[1745367361535,0.0014247,93509.0,93502.0,0.17651195]
[1745367361739,0.047,93508.0,93502.0,0.17651195]
[1745367362318,0.054,93508.0,93505.0,0.001]
[1745367362755,0.047,93508.0,93502.0,0.17651195]
[1745367362966,0.053,93508.0,93502.0,0.17651195]
[1745367363349,0.053,93508.0,93503.0,0.12833812]
[1745367363580,0.006,93508.0,93503.0,0.12833812]
[1745367363804,0.006,93508.0,93506.0,0.12833401]
[1745367364014,0.006,93508.0,93507.0,0.00213863]
[1745367364226,0.006,93508.0,93506.0,0.12833401]
[1745367364440,0.0014247,93509.0,93504.0,0.01069472]
[1745367364892,0.00469892,93508.0,93505.0,0.13902982]
[1745367365121,0.00469892,93508.0,93504.0,0.00213852]
[1745367365342,0.0014247,93509.0,93498.0,0.03121024]
[1745367365558,0.1029,93508.0,93506.0,0.001]
[1745367365781,0.23850272,93507.0,93506.0,0.001]
[1745367366048,0.26093577,93486.0,93485.0,0.03049432]
[1745367366256,0.01069758,93479.0,93455.0,0.10332]
[1745367366465,0.11058588,93478.0,93458.0,0.01069999]
[1745367366688,0.00228283,93477.0,93457.0,0.0107001]
[1745367366897,0.11729533,93477.0,93457.0,0.0107001]
[1745367367131,0.11729533,93477.0,93455.0,0.03089324]
[1745367367353,0.11729533,93477.0,93457.0,0.0107001]
[1745367367536,0.11729533,93477.0,93459.0,0.01069987]
[1745367367768,0.11729533,93477.0,93460.0,0.01069976]
[1745367367977,0.11729533,93477.0,93459.0,0.01283961]
[1745367368190,0.11729533,93477.0,93457.0,0.01084064]
[1745367368811,0.00670945,93477.0,93458.0,0.01283973]
[1745367369023,0.01069701,93484.0,93459.0,0.00759744]
[1745367369237,0.21395868,93476.0,93459.0,0.00759744]
[1745367369446,0.00228283,93475.0,93457.0,0.00014054]
[1745367369696,0.0066952,93475.0,93467.0,0.01069896]
[1745367369919,0.001,93477.0,93467.0,0.0021396]
[1745367370134,0.00668808,93474.0,93467.0,0.0021396]
[1745367370344,0.00670233,93476.0,93467.0,0.0021396]
[1745367370555,0.00668095,93473.0,93463.0,0.01069942]
[1745367370779,0.00228283,93485.0,93463.0,0.01069942]
[1745367370911,0.00667382,93472.0,93463.0,0.01069942]
[1745367371143,0.001,93484.0,93464.0,0.00743722]
[1745367371318,0.001,93484.0,93469.0,0.01069873]
[1745367371531,0.00675221,93483.0,93478.0,0.0106977]
[1745367371745,0.0484,93494.0,93478.0,0.0106977]
[1745367371955,0.00649879,93482.0,93478.0,0.00213929]
[1745367372254,0.0484,93494.0,93477.0,0.01069781]
[1745367372470,0.00228283,93493.0,93473.0,0.01069827]
[1745367372679,0.002,93483.0,93473.0,0.01069827]
[1745367373082,0.002,93483.0,93474.0,0.00744706]
[1745367374019,0.002,93483.0,93391.0,0.001]
[1745367374020,0.01069667,93487.0,93475.0,0.00744706]
[1745367374255,0.00228283,93486.0,93475.0,0.00744706]
[1745367374479,0.00627537,93486.0,93477.0,0.01069781]
[1745367374698,0.01311885,93509.0,93478.0,0.00213908]
[1745367374938,0.01069575,93495.0,93471.0,0.00744706]
[1745367375161,0.15868588,93494.0,93479.0,0.00744706]
[1745367375383,0.16496915,93494.0,93479.0,0.00744706]
[1745367375608,0.004,93483.0,93479.0,0.00744706]
[1745367375930,0.05162627,93482.0,93479.0,0.00744706]
[1745367376129,0.05162627,93482.0,93464.0,0.00744706]
[1745367376130,0.00228283,93481.0,93464.0,0.00744706]
[1745367376582,0.00228283,93481.0,93465.0,0.1283903]
[1745367376799,0.00228283,93481.0,93466.0,0.00744706]
[1745367377875,0.00621677,93480.0,93466.0,0.00744706]
[1745367378290,0.00621677,93480.0,93463.0,0.12839267]
[1745367378495,0.00228283,93481.0,93463.0,0.12839267]
[1745367378925,0.001,93480.0,93462.0,0.00744706]
[1745367379118,0.001,93480.0,93460.0,0.01814682]
[1745367379321,0.001,93480.0,93461.0,0.13909545]
[1745367379612,0.001,93480.0,93461.0,0.1283958]
[1745367379815,0.001,93480.0,93462.0,0.00744706]
[1745367381187,0.001,93480.0,93460.0,0.12839625]
[1745367381188,0.01069884,93468.0,93461.0,0.00744706]
[1745367381382,0.21398995,93463.0,93461.0,0.00744706]
[1745367381598,0.21399987,93458.0,93457.0,0.00014054]
[1745367381814,0.20408588,93458.0,93457.0,0.00014054]
[1745367382021,0.21006378,93458.0,93457.0,0.00014054]
[1745367382275,0.20906378,93458.0,93457.0,0.00014054]
[1745367384593,0.21706378,93458.0,93457.0,0.00114054]
[1745367385632,0.21478095,93458.0,93457.0,0.00114054]
[1745367385831,0.1172579,93458.0,93457.0,0.00114054]
[1745367386028,0.0139779,93458.0,93457.0,0.00114054]
[1745367386461,0.008,93458.0,93457.0,0.00328033]
[1745367387275,0.008,93458.0,93457.0,0.21555233]
[1745367387511,0.10328,93475.0,93465.0,0.01069919]
[1745367387656,0.10328,93475.0,93466.0,0.00213959]
[1745367387877,0.00578509,93474.0,93466.0,0.14122624]
[1745367388050,0.0454,93483.0,93467.0,0.01815341]
[1745367388399,0.10332,93482.0,93467.0,0.01815341]
[1745367388645,0.10332,93482.0,93468.0,0.01815329]
[1745367388844,0.00581834,93481.0,93468.0,0.00745445]
[1745367389067,0.00810117,93481.0,93468.0,0.00745445]
[1745367389721,0.00810117,93481.0,93466.0,0.00745445]
[1745367389927,0.00810117,93481.0,93466.0,0.00959402]
[1745367390394,0.00810117,93481.0,93467.0,0.007461]
[1745367390871,0.01110117,93481.0,93467.0,0.007461]
[1745367391071,0.00528283,93481.0,93468.0,0.007461]
[1745367391514,0.00228283,93481.0,93470.0,0.40737882]
[1745367391733,0.00598199,93480.0,93470.0,0.40737882]
[1745367391940,0.00428283,93481.0,93470.0,0.40737882]
[1745367392156,0.10332,93482.0,93471.0,0.007461]
[1745367392370,0.0459,93495.0,93484.0,0.01069701]
[1745367392579,0.14838,93497.0,93485.0,0.40737882]
[1745367392768,0.00521307,93494.0,93485.0,0.41483982]
[1745367393025,0.00228283,93496.0,93485.0,0.41483982]
[1745367393267,0.14838,93497.0,93485.0,0.41483982]
[1745367393747,0.0014247,93509.0,93488.0,0.01069655]
[1745367393966,0.11058588,93508.0,93499.0,0.40737882]
[1745367394377,0.0052973,93507.0,93499.0,0.40737882]
[1745367394581,0.11058588,93506.0,93500.0,0.007461]
[1745367394785,0.11587843,93506.0,93500.0,0.007461]
[1745367394984,0.11634673,93506.0,93500.0,0.007461]
[1745367395579,0.11634673,93506.0,93499.0,0.001]
[1745367396362,0.11634673,93506.0,93500.0,0.007461]
[1745367397176,0.21390057,93502.0,93500.0,0.007461]
[1745367397351,0.11058588,93501.0,93480.0,0.40737882]
[1745367397555,0.01069587,93494.0,93480.0,0.03062787]
[1745367397754,0.01069518,93500.0,93470.0,0.40737882]
[1745367397755,0.0449,93492.0,93472.0,0.01069839]
[1745367398081,0.0449,93492.0,93480.0,0.40737882]
[1745367398285,0.00228283,93491.0,93480.0,0.40737882]
[1745367398619,0.00228283,93491.0,93481.0,0.00746299]
[1745367399187,0.00228283,93491.0,93482.0,0.00746299]
[1745367399555,0.00529182,93490.0,93482.0,0.00746299]
[1745367399792,0.26972774,93488.0,93482.0,0.00746299]
[1745367399994,0.0106969,93485.0,93482.0,0.00746299]
[1745367400205,0.21622318,93484.0,93482.0,0.00746299]
[1745367400531,0.00749369,93484.0,93460.0,0.41807858]
[1745367400738,0.00749369,93484.0,93470.0,0.40737882]
[1745367401154,0.00749369,93484.0,93470.0,0.43873357]
[1745367401366,0.0181907,93484.0,93471.0,0.00746808]
[1745367401579,0.01069724,93482.0,93471.0,0.00746808]
[1745367401813,0.00228283,93481.0,93471.0,0.00746808]
[1745367402025,0.00519661,93481.0,93470.0,0.43873357]
[1745367402235,0.00228283,93480.0,93470.0,0.43873357]
[1745367402447,0.00519186,93480.0,93470.0,0.43873357]
[1745367402597,0.00228283,93482.0,93470.0,0.43873357]
[1745367402809,0.00518711,93479.0,93470.0,0.03135475]
[1745367402990,0.00519661,93481.0,93469.0,0.40737882]
[1745367403192,0.00519661,93481.0,93461.0,0.01069965]
[1745367403193,0.00513077,93478.0,93455.0,0.17651195]
[1745367403401,0.22693701,93477.0,93460.0,0.40737882]
[1745367403604,0.00228283,93477.0,93460.0,0.40737882]
[1745367403812,0.0158192,93476.0,93460.0,0.40737882]
[1745367404034,0.00228283,93475.0,93460.0,0.40737882]
[1745367404447,0.00511177,93474.0,93460.0,0.40737882]
[1745367404655,0.00228283,93473.0,93460.0,0.40751936]
[1745367404871,0.00511177,93474.0,93460.0,0.40751936]
[1745367405078,0.10830305,93478.0,93461.0,0.01069965]
[1745367405280,0.00228283,93482.0,93468.0,0.40737882]
[1745367405493,0.00228283,93487.0,93468.0,0.40737882]
[1745367405703,0.11347182,93486.0,93468.0,0.40737882]
[1745367406115,0.1241686,93486.0,93468.0,0.40737882]
[1745367406336,0.0106985,93471.0,93461.0,0.002]
[1745367406553,0.00509277,93470.0,93461.0,0.002]
[1745367406777,0.00228283,93473.0,93461.0,0.002]
[1745367406778,0.01298099,93474.0,93461.0,0.002]
[1745367406987,0.00508801,93469.0,93461.0,0.002]
[1745367407189,0.01298099,93474.0,93461.0,0.002]
[1745367407390,0.01298099,93474.0,93460.0,0.40751936]
[1745367407595,0.00510702,93473.0,93460.0,0.40751936]
[1745367408247,0.00228283,93476.0,93460.0,0.40751936]
[1745367408452,0.00510227,93472.0,93460.0,0.40751936]
[1745367408652,0.002,93474.0,93460.0,0.40751936]
[1745367408852,0.00509752,93471.0,93460.0,0.40751936]
[1745367409053,0.00510702,93473.0,93460.0,0.40751936]
[1745367409254,0.10830305,93477.0,93460.0,0.40751936]
[1745367409255,0.00509277,93470.0,93460.0,0.40751936]
[1745367409450,0.10830305,93477.0,93460.0,0.40751936]
[1745367409451,0.00428283,93476.0,93460.0,0.40751936]
[1745367409855,0.00511652,93475.0,93460.0,0.40751936]
[1745367410261,0.002,93476.0,93461.0,0.01069965]
[1745367410474,0.002,93476.0,93462.0,0.01069953]
[1745367410672,0.002,93476.0,93461.0,0.01069965]
[1745367411182,0.00228283,93481.0,93461.0,0.01069965]
[1745367411412,0.00228283,93480.0,93470.0,0.40737882]
[1745367411592,0.002,93473.0,93470.0,0.40737882]
[1745367411990,0.0451,93488.0,93474.0,0.01069816]
[1745367412192,0.10328,93489.0,93478.0,0.40737882]
[1745367412397,0.002,93481.0,93479.0,0.00213928]
[1745367412562,0.002,93481.0,93478.0,0.40737882]
[1745367412770,0.10328,93489.0,93478.0,0.40737882]
[1745367413176,0.006,93488.0,93478.0,0.40737882]
[1745367413694,0.00518375,93487.0,93478.0,0.40737882]
[1745367414688,0.10528,93489.0,93478.0,0.40737882]
[1745367414907,0.8846,93784.0,93478.0,0.40737882]
[1745367414908,0.0461,93526.0,93505.0,0.01069461]
[1745367415125,0.0461,93526.0,93508.0,0.12833126]
[1745367415353,0.001,93529.0,93522.0,0.01069267]
[1745367415574,0.001,93529.0,93521.0,0.12831309]
[1745367415789,0.001,93529.0,93520.0,0.01069289]
[1745367415790,0.001,93529.0,93522.0,0.00213838]
[1745367415994,0.001,93529.0,93521.0,0.00213831]
[1745367416209,0.00146859,93529.0,93519.0,0.40737882]
[1745367416415,0.00146859,93529.0,93519.0,0.43453124]
[1745367417803,0.00246859,93529.0,93519.0,0.43453124]
[1745367418346,0.00146859,93529.0,93519.0,0.43453124]
[1745367418560,0.00246859,93529.0,93519.0,0.43453124]
[1745367421287,0.00246859,93529.0,93526.0,0.01069221]
[1745367421512,0.00246859,93529.0,93524.0,0.01069244]
[1745367421728,0.00246859,93529.0,93522.0,0.01069267]
[1745367421968,0.00246859,93529.0,93523.0,0.01069255]
[1745367422153,0.00146859,93529.0,93522.0,0.01069267]
[1745367422395,0.00146859,93529.0,93523.0,0.01069255]
[1745367422623,0.00346859,93529.0,93524.0,0.13044745]
[1745367422849,0.00346859,93529.0,93523.0,0.01069255]
[1745367423280,0.00346859,93529.0,93526.0,0.13899877]
[1745367423497,0.0004246,93543.0,93542.0,0.12828462]
[1745367423711,0.001,93589.0,93568.0,0.12824897]
[1745367423915,0.001,93589.0,93574.0,0.01068672]
[1745367424126,0.001,93589.0,93580.0,0.01068604]
[1745367424342,0.00114059,93589.0,93580.0,0.12823252]
[1745367424560,0.00114059,93589.0,93579.0,0.31346906]
[1745367424769,0.00114059,93589.0,93579.0,0.43389828]
[1745367424979,0.00114059,93589.0,93588.0,0.12822156]
[1745367425182,0.00114059,93589.0,93588.0,0.00213673]
[1745367425425,0.00114059,93589.0,93588.0,0.52742005]
[1745367425626,0.00114059,93589.0,93588.0,0.10830305]
[1745367425845,0.00414059,93589.0,93587.0,0.12822157]
[1745367426052,0.00414059,93589.0,93588.0,0.23589505]
[1745367426478,0.001,93609.0,93588.0,0.23589505]
[1745367426738,0.00246844,93596.0,93595.0,0.14275282]
[1745367426953,0.000425,93623.0,93618.0,0.0106817]
[1745367427180,0.00089292,93623.0,93619.0,0.00213609]
[1745367427391,0.00089292,93623.0,93620.0,0.01281752]
[1745367427595,0.00089292,93623.0,93620.0,0.14099525]
[1745367427807,0.001,93629.0,93626.0,0.13884989]
[1745367428012,0.00114032,93629.0,93628.0,0.12816678]
[1745367428225,0.00014032,93629.0,93628.0,1.56626542]
[1745367428433,0.00014032,93629.0,93628.0,0.48112905]
[1745367428850,0.00014032,93629.0,93628.0,0.4956699]
[1745367429485,0.01167589,93669.0,93628.0,0.4956699]
[1745367429486,0.001,93669.0,93646.0,0.01067851]
[1745367429715,0.001,93669.0,93646.0,0.01281378]
[1745367429918,0.01067646,93664.0,93642.0,0.01067896]
[1745367430142,0.01067646,93664.0,93612.0,0.05]
[1745367430143,0.01067976,93635.0,93630.0,0.40737882]
[1745367430578,0.00228283,93634.0,93630.0,0.40737882]
[1745367430796,0.01296236,93637.0,93630.0,0.40737882]
[1745367431072,0.00500341,93633.0,93630.0,0.40737882]
[1745367431278,0.10316,93651.0,93630.0,0.40737882]
[1745367431507,0.00499867,93632.0,93630.0,0.40737882]
[1745367431710,0.11058588,93646.0,93630.0,0.40737882]
[1745367432130,0.00506022,93645.0,93630.0,0.40737882]
[1745367432343,0.00506022,93645.0,93631.0,0.00213604]
[1745367432545,0.00666504,93645.0,93630.0,0.40737882]
[1745367432770,0.00328283,93649.0,93639.0,0.06]
[1745367432995,0.001,93649.0,93648.0,0.12813941]
[1745367433185,0.001,93649.0,93648.0,0.1302747]
[1745367433401,0.001,93649.0,93648.0,0.23857775]
[1745367433638,0.001,93649.0,93648.0,0.23644246]
[1745367434080,0.001,93649.0,93648.0,0.26367584]
[1745367434539,0.001,93649.0,93648.0,0.02723338]
[1745367434937,0.001,93649.0,93646.0,0.12814121]
[1745367435147,0.001,93649.0,93648.0,0.10830305]
[1745367435794,0.001,93649.0,93648.0,0.11043822]
[1745367436043,0.001,93649.0,93648.0,0.10830305]
[1745367436240,0.001,93649.0,93648.0,1.93009418]
[1745367436460,0.001,93649.0,93648.0,1.92795905]
[1745367436898,0.001,93649.0,93648.0,0.35680605]
[1745367437132,0.001,93649.0,93648.0,0.10830305]
[1745367437342,0.001,93649.0,93648.0,0.11043822]
[1745367437824,0.001,93649.0,93648.0,0.10830305]
[1745367438058,0.001,93649.0,93648.0,0.11043822]
[1745367438309,0.001,93649.0,93648.0,0.35302222]
[1745367438520,0.001,93649.0,93648.0,0.3654279]
[1745367439168,0.001,93649.0,93648.0,0.39412348]
[1745367439386,0.001,93649.0,93648.0,0.57063543]
[1745367439609,0.0004249,93672.0,93668.0,0.12811205]
[1745367439828,0.00114029,93669.0,93668.0,0.4273979]
[1745367440269,0.00114029,93669.0,93668.0,0.7181899]
[1745367440485,0.0004249,93687.0,93686.0,0.14262829]
[1745367440745,0.0004249,93687.0,93686.0,0.35405134]
[1745367440965,0.0592769,93728.0,93702.0,0.12806556]
[1745367441180,0.00056514,93703.0,93696.0,0.01067281]
[1745367441461,0.00056514,93703.0,93700.0,0.01067235]
[1745367441685,0.00056514,93703.0,93701.0,0.00213411]
[1745367441917,0.00056514,93703.0,93693.0,0.40737882]
[1745367442120,0.00056514,93703.0,93665.0,0.05]
[1745367442121,0.00056514,93703.0,93687.0,0.01067383]
[1745367442385,0.00056514,93703.0,93688.0,0.01067372]
[1745367442622,0.00056514,93703.0,93695.0,0.01067292]
[1745367442841,0.00056514,93703.0,93696.0,0.01280699]
[1745367443061,0.00056514,93703.0,93698.0,0.01067258]
[1745367443290,0.00056514,93703.0,93700.0,0.13874065]
[1745367443507,0.00056514,93703.0,93701.0,0.10830305]
[1745367443933,0.00056514,93703.0,93702.0,0.12806556]
[1745367444153,0.00056514,93703.0,93702.0,0.23636861]
[1745367444422,0.00056514,93703.0,93702.0,0.42735141]
[1745367444900,0.00056514,93703.0,93702.0,2.104401]
[1745367445130,0.00056514,93703.0,93702.0,0.394762]
[1745367445352,0.00056514,93703.0,93702.0,0.28645895]
[1745367445579,0.00056514,93703.0,93702.0,0.394762]
[1745367446072,0.00056514,93703.0,93702.0,0.16627336]
[1745367446290,0.00056514,93703.0,93702.0,0.10830305]
[1745367446542,0.00056514,93703.0,93702.0,1.88077109]
[1745367446757,0.00056514,93703.0,93702.0,1.86137205]
[1745367447629,0.00056514,93703.0,93702.0,1.753069]
[1745367447816,0.00056514,93703.0,93695.0,0.01067292]
[1745367448010,0.00056514,93703.0,93698.0,0.01067258]
[1745367448264,0.00056514,93703.0,93680.0,0.40737882]
[1745367448479,0.00056514,93703.0,93680.0,0.10830305]
[1745367448480,0.01067258,93698.0,93680.0,0.10830305]
[1745367448688,0.21346311,93693.0,93673.0,0.4135]
[1745367448898,0.01067326,93692.0,93673.0,0.4135]
[1745367449126,0.01067395,93686.0,93673.0,0.4135]
[1745367449345,0.01067395,93686.0,93660.0,0.40737882]
[1745367449346,0.01067463,93680.0,93650.0,0.40737882]
[1745367449568,0.00228283,93679.0,93651.0,0.52180305]
[1745367449790,0.01067566,93671.0,93651.0,0.445504]
[1745367450004,0.01067589,93669.0,93651.0,0.4135]
[1745367450217,0.00228283,93673.0,93651.0,0.4135]
[1745367450427,0.01295826,93673.0,93651.0,0.42417794]
[1745367450640,0.01067543,93673.0,93652.0,0.00213519]
[1745367450879,0.01067577,93670.0,93652.0,0.00213519]
[1745367451088,0.01067577,93670.0,93652.0,0.00014029]
[1745367451305,0.01295837,93672.0,93652.0,0.00014029]
[1745367451523,0.01067543,93673.0,93652.0,0.00227548]
[1745367451745,0.01067509,93676.0,93652.0,0.0129533]
[1745367451965,0.01067543,93673.0,93652.0,0.00227548]
[1745367452169,0.01067566,93671.0,93652.0,0.00227548]
[1745367452388,0.01067543,93673.0,93652.0,0.00227548]
[1745367452813,0.01067554,93672.0,93652.0,0.00227548]
[1745367453498,0.0106752,93675.0,93653.0,0.10830305]
[1745367453712,0.01067566,93671.0,93653.0,0.10830305]
[1745367453918,0.01067566,93671.0,93652.0,0.00014029]
[1745367453919,0.01067668,93662.0,93652.0,0.00014029]
[1745367454133,0.01067577,93670.0,93652.0,0.00014029]
[1745367454354,0.010676,93668.0,93652.0,0.00014029]
[1745367454562,0.0475,93697.0,93669.0,0.08568292]
[1745367454782,0.0004249,93703.0,93690.0,0.01067349]
[1745367455019,0.0004249,93703.0,93691.0,0.00213443]
[1745367455233,0.0004249,93703.0,93688.0,0.01067372]
[1745367455447,0.0004249,93703.0,93682.0,0.12809201]
[1745367455448,0.0004249,93703.0,93700.0,0.12806749]
[1745367455661,0.0004249,93703.0,93697.0,0.0106727]
[1745367455878,0.01067213,93702.0,93698.0,0.170607]
[1745367456104,0.01067213,93702.0,93681.0,0.10830305]
[1745367456313,0.0004249,93703.0,93681.0,0.10830305]
[1745367456519,0.00014024,93702.0,93681.0,0.10830305]
[1745367456752,0.00014024,93702.0,93682.0,0.0106744]
[1745367456978,0.00014024,93702.0,93681.0,0.10830305]
[1745367457200,0.00014024,93702.0,93652.0,0.002]
[1745367457201,0.01067406,93685.0,93660.0,0.41805573]
[1745367457491,0.22644093,93684.0,93661.0,0.236753]
[1745367457715,0.01295701,93684.0,93660.0,0.11897996]
[1745367457931,0.01295701,93684.0,93660.0,0.40737882]
[1745367457932,0.01067475,93679.0,93660.0,0.40737882]
[1745367458149,0.0106752,93675.0,93652.0,0.001]